bitfinex/quotes_BTCUSD_20240810
["timestamp","ask_amount","ask_price","bid_price","bid_amount"]
[1723312078582,0.000832,60740.0,60739.0,1.6950055]
[1723312078990,0.000832,60740.0,60739.0,1.6810055]
[1723312079173,0.000832,60740.0,60739.0,1.69500447]
[1723312079372,0.000832,60740.0,60739.0,1.68100447]
[1723312080202,0.000832,60740.0,60739.0,1.55300358]
[1723312080404,0.000832,60740.0,60739.0,1.53878002]
[1723312080610,0.000832,60740.0,60739.0,1.44043097]
[1723312080814,0.000832,60740.0,60739.0,1.36349732]
[1723312081045,0.000832,60740.0,60739.0,1.51420241]
[1723312081848,0.000832,60740.0,60739.0,1.51578968]
[1723312082409,0.000832,60740.0,60739.0,1.44202687]
[1723312082610,0.000832,60740.0,60739.0,1.51578968]
[1723312082773,0.062032,60747.0,60746.0,0.654866]
[1723312082977,0.062032,60747.0,60746.0,0.95538601]
[1723312084055,1.09137398,60750.0,60749.0,0.082305]
[1723312084256,1.09137398,60750.0,60749.0,0.46152515]
[1723312084458,1.09137398,60750.0,60749.0,0.95535815]
[1723312085806,1.09137398,60750.0,60749.0,0.98335815]
[1723312086207,1.09137398,60750.0,60749.0,0.98739959]
[1723312087186,1.09137398,60750.0,60749.0,0.98335815]
[1723312088859,1.09137398,60750.0,60749.0,0.98335645]
[1723312089817,1.09137398,60750.0,60749.0,1.30096745]
[1723312090060,0.00024423,60751.0,60749.0,1.30096745]
[1723312090061,0.00024423,60751.0,60750.0,0.57771827]
[1723312090288,0.00024423,60751.0,60750.0,1.06425845]
[1723312090468,0.00024423,60751.0,60750.0,1.07425845]
[1723312090763,0.00024423,60751.0,60750.0,1.07829923]
[1723312091301,0.00024423,60751.0,60750.0,1.15669923]
[1723312091519,0.00024423,60751.0,60750.0,1.1722865]
[1723312092196,0.00024423,60751.0,60750.0,1.03558297]
[1723312092415,0.00024423,60751.0,60750.0,1.17226588]
[1723312092688,0.00024423,60751.0,60750.0,1.18626588]
[1723312092900,0.00024423,60751.0,60750.0,1.25460411]
[1723312093117,0.00024423,60751.0,60750.0,1.30371645]
[1723312093551,0.00024423,60751.0,60750.0,1.32371645]
[1723312093982,0.00024423,60751.0,60750.0,1.30371645]
[1723312094441,0.00024423,60751.0,60750.0,1.25460411]
[1723312094972,0.00024423,60751.0,60750.0,1.27460411]
[1723312095220,0.00024423,60751.0,60750.0,1.51004008]
[1723312095461,0.00024423,60751.0,60750.0,1.5835764]
[1723312095895,0.00024423,60751.0,60750.0,1.5100373]
[1723312096396,0.00024423,60751.0,60750.0,1.72366424]
[1723312096615,0.00024423,60751.0,60750.0,1.74818262]
[1723312096830,0.00024423,60751.0,60750.0,1.6546463]
[1723312097266,0.00024423,60751.0,60750.0,1.48381311]
[1723312099405,0.00024423,60751.0,60750.0,1.27879197]
[1723312099642,0.00024423,60751.0,60750.0,1.65465291]
[1723312099847,0.00024423,60751.0,60750.0,1.27879197]
[1723312100052,0.00024423,60751.0,60750.0,1.65465363]
[1723312100458,0.00024423,60751.0,60750.0,1.67075064]
[1723312100657,0.00024423,60751.0,60750.0,1.33171115]
[1723312101845,0.00024423,60751.0,60750.0,1.50996363]
[1723312102010,0.00024423,60751.0,60750.0,1.32767037]
[1723312102446,0.00024423,60751.0,60750.0,1.50996363]
[1723312102653,0.00024423,60751.0,60750.0,1.68081761]
[1723312102858,0.00024423,60751.0,60750.0,1.50996363]
[1723312103062,0.00024423,60751.0,60750.0,1.50983852]
[1723312103857,0.00024423,60751.0,60750.0,1.68069319]
[1723312104108,0.00024423,60751.0,60750.0,1.50983852]
[1723312106221,0.00024423,60751.0,60750.0,1.34273852]
[1723312106444,0.06244423,60751.0,60750.0,1.23928053]
[1723312106621,0.06244423,60751.0,60750.0,1.03425492]
[1723312106794,0.06244423,60751.0,60750.0,1.17094598]
[1723312107616,0.00024423,60751.0,60750.0,1.4213236]
[1723312108197,0.00024423,60751.0,60750.0,1.59217708]
[1723312108569,0.00024423,60751.0,60750.0,1.4213236]
[1723312108770,0.00024423,60751.0,60750.0,1.5921771]
[1723312110184,0.00024423,60751.0,60750.0,1.59217423]
[1723312110609,0.00024423,60751.0,60750.0,1.03425492]
[1723312110811,0.00024423,60751.0,60750.0,1.59203409]
[1723312112546,0.00024423,60751.0,60750.0,1.42118016]
[1723312113183,0.00024423,60751.0,60750.0,1.59203578]
[1723312113586,0.00024423,60751.0,60750.0,1.47030506]
[1723312113789,0.00024423,60751.0,60750.0,1.47026221]
[1723312114035,0.00024423,60751.0,60750.0,1.64111783]
[1723312114219,0.00024423,60751.0,60750.0,1.59199293]
[1723312114597,0.00024423,60751.0,60750.0,1.66568028]
[1723312115548,0.00024423,60751.0,60750.0,1.69024273]
[1723312115871,0.00024423,60751.0,60750.0,1.69024424]
[1723312116634,0.00024423,60751.0,60750.0,1.71480669]
[1723312117425,0.00024423,60751.0,60750.0,1.47560675]
[1723312117624,0.00024423,60751.0,60750.0,1.59199291]
[1723312118030,0.00024423,60751.0,60750.0,1.66889291]
[1723312118657,0.00024423,60751.0,60750.0,1.73358018]
[1723312118837,0.00024423,60751.0,60750.0,1.74358018]
[1723312119264,0.00024423,60751.0,60750.0,1.89095489]
[1723312119458,0.00024423,60751.0,60750.0,1.74358018]
[1723312119774,0.00024423,60751.0,60750.0,1.89134151]
[1723312121048,0.00024423,60751.0,60750.0,1.35360352]
[1723312121256,0.00024423,60751.0,60750.0,1.8916143]
[1723312121760,0.00024423,60751.0,60750.0,1.89165906]
[1723312123102,0.00024423,60751.0,60750.0,1.8468831]
[1723312123527,0.00024423,60751.0,60750.0,1.8668831]
[1723312123899,0.00024423,60751.0,60750.0,1.8468831]
[1723312124726,0.00024423,60751.0,60750.0,1.84529583]
[1723312124931,0.00024423,60751.0,60750.0,1.88982018]
[1723312125153,0.00024423,60751.0,60750.0,1.84504979]
[1723312125434,0.00024423,60751.0,60750.0,1.78194979]
[1723312125609,0.00024423,60751.0,60750.0,1.59206275]
[1723312125963,0.00024423,60751.0,60750.0,1.69222713]
[1723312127094,0.00024423,60751.0,60750.0,1.23360742]
[1723312127298,0.00024423,60751.0,60750.0,1.33215571]
[1723312128139,0.00024423,60751.0,60750.0,1.52763419]
[1723312128498,0.00024423,60751.0,60750.0,1.50303354]
[1723312128700,0.00024423,60751.0,60750.0,1.33180612]
[1723312128950,0.00024423,60751.0,60750.0,1.5272692]
[1723312129625,0.00024423,60751.0,60750.0,1.52726925]
[1723312130037,0.00024423,60751.0,60750.0,1.40410487]
[1723312130365,0.00024423,60751.0,60750.0,1.40410337]
[1723312131377,0.00024423,60751.0,60750.0,1.3565445]
[1723312131804,0.00024423,60751.0,60750.0,1.35655349]
[1723312131976,0.00024423,60751.0,60750.0,1.35655095]
[1723312132204,0.14509069,60751.0,60750.0,1.35655095]
[1723312132362,0.14509069,60751.0,60750.0,1.16490386]
[1723312132567,0.14509069,60751.0,60750.0,1.23890917]
[1723312132788,0.14509069,60751.0,60750.0,0.89273563]
[1723312133194,0.14509069,60751.0,60750.0,0.75604223]
[1723312133402,0.14509069,60751.0,60750.0,0.89274504]
[1723312134513,0.14509069,60751.0,60750.0,0.89274502]
[1723312134986,0.14509069,60751.0,60750.0,0.89275411]
[1723312137354,1.23646467,60751.0,60750.0,0.81873971]
[1723312138376,1.15461821,60751.0,60750.0,0.81873971]
[1723312139336,1.15461821,60751.0,60750.0,1.03267826]
[1723312139602,1.15461821,60751.0,60750.0,1.032679]
[1723312139808,1.15461821,60751.0,60750.0,0.86807]
[1723312141028,1.15503094,60751.0,60750.0,0.81873971]
[1723312141364,1.23093094,60751.0,60750.0,0.24700679]
[1723312141797,1.23093094,60751.0,60750.0,0.32570679]
[1723312142213,1.23093094,60751.0,60750.0,0.175004]
[1723312142371,1.23093094,60751.0,60750.0,0.088304]
[1723312142570,1.23093094,60751.0,60750.0,0.22502676]
[1723312142772,1.23093094,60751.0,60750.0,0.22302376]
[1723312142974,1.23093094,60751.0,60750.0,0.089304]
[1723312143342,1.23093094,60751.0,60750.0,0.30472108]
[1723312143518,1.23093094,60751.0,60750.0,0.168004]
[1723312144065,1.23093094,60751.0,60750.0,0.30072382]
[1723312144487,1.23093094,60751.0,60750.0,0.166004]
[1723312144881,1.23093094,60751.0,60750.0,0.163004]
[1723312145266,1.23093094,60751.0,60750.0,0.167004]
[1723312145677,1.23093094,60751.0,60750.0,0.165004]
[1723312145864,1.23093094,60751.0,60750.0,0.167004]
[1723312146013,1.23093094,60751.0,60750.0,0.163004]
[1723312146221,1.23093094,60751.0,60750.0,0.167004]
[1723312147055,1.23093094,60751.0,60750.0,0.46832911]
[1723312147433,1.23093094,60751.0,60750.0,0.331613]
[1723312148543,1.23093094,60751.0,60750.0,0.252913]
[1723312148771,1.23093094,60751.0,60750.0,0.331613]
[1723312152410,1.23093094,60751.0,60750.0,0.252913]
[1723312152585,1.23093094,60751.0,60750.0,0.331613]
[1723312154190,1.23093094,60751.0,60750.0,0.46833024]
[1723312155739,1.15503094,60751.0,60750.0,0.63293924]
[1723312157125,1.15503094,60751.0,60750.0,0.63293377]
[1723312157528,1.15503094,60751.0,60750.0,0.496222]
[1723312157758,1.09161821,60751.0,60750.0,0.87744869]
[1723312158318,1.09161821,60751.0,60750.0,0.8774485]
[1723312160990,1.09161821,60751.0,60750.0,1.0420575]
[1723312161158,1.09161821,60751.0,60750.0,1.0650575]
[1723312161359,1.09161821,60751.0,60750.0,1.06504844]
[1723312161583,1.09161821,60751.0,60750.0,1.06504827]
[1723312162123,1.09161821,60751.0,60750.0,1.05904827]
[1723312162445,1.09161821,60751.0,60750.0,1.08304827]
[1723312162748,1.09161821,60751.0,60750.0,0.81473927]
[1723312163746,1.09161821,60751.0,60750.0,0.80373927]
[1723312164158,1.09161821,60751.0,60750.0,0.81473927]
[1723312164573,1.09161821,60751.0,60750.0,0.79073927]
[1723312164801,1.09161821,60751.0,60750.0,0.80373927]
[1723312165001,1.09161821,60751.0,60750.0,0.81373927]
[1723312165196,1.09161821,60751.0,60750.0,0.80073927]
[1723312165538,1.09161821,60751.0,60750.0,0.81373927]
[1723312165750,1.09161821,60751.0,60750.0,0.67703692]
[1723312165950,1.09161821,60751.0,60750.0,0.81374444]
[1723312168133,1.09203094,60751.0,60750.0,0.81374444]
[1723312168314,1.15603094,60751.0,60750.0,0.81374444]
[1723312168719,1.15603094,60751.0,60750.0,0.64913544]
[1723312168920,1.15603094,60751.0,60750.0,0.57043544]
[1723312169231,1.23553094,60751.0,60750.0,0.24201152]
[1723312170313,1.23553094,60751.0,60750.0,0.24202528]
[1723312170514,1.23553094,60751.0,60750.0,0.40663428]
[1723312170691,1.23553094,60751.0,60750.0,0.39663428]
[1723312170916,1.23553094,60751.0,60750.0,0.39963428]
[1723312171083,1.15603094,60751.0,60750.0,0.39963428]
[1723312171280,1.09161821,60751.0,60750.0,0.7937582]
[1723312171482,1.09161821,60751.0,60750.0,0.79575576]
[1723312171987,1.09203094,60751.0,60750.0,0.79375576]
[1723312172189,1.09203094,60751.0,60750.0,0.79875576]
[1723312172429,1.09203094,60751.0,60750.0,0.79075576]
[1723312172633,1.09203094,60751.0,60750.0,0.79775576]
[1723312173034,1.09203094,60751.0,60750.0,0.79075576]
[1723312173232,1.09203094,60751.0,60750.0,0.79775576]
[1723312173610,1.09203094,60751.0,60750.0,0.7977449]
[1723312173992,1.09203094,60751.0,60750.0,0.8027449]
[1723312174376,1.09203094,60751.0,60750.0,0.7977449]
[1723312174776,1.09161821,60751.0,60750.0,0.8027449]
[1723312175152,1.09161821,60751.0,60750.0,0.7907449]
[1723312175355,1.09161821,60751.0,60750.0,0.7977449]
[1723312175562,1.09161821,60751.0,60750.0,0.7957449]
[1723312175987,1.09203094,60751.0,60750.0,0.8027449]
[1723312176726,1.09203094,60751.0,60750.0,0.7957449]
[1723312177065,1.09203094,60751.0,60750.0,0.7977449]
[1723312177472,1.09203094,60751.0,60750.0,0.80274608]
[1723312177876,1.09203094,60751.0,60750.0,0.79774608]
[1723312178444,1.09203094,60751.0,60750.0,0.79574608]
[1723312178571,1.09161821,60751.0,60750.0,0.84508422]
[1723312178787,1.09161821,60751.0,60750.0,1.08649322]
[1723312179238,1.09161821,60751.0,60750.0,1.04915508]
[1723312179437,1.09161821,60751.0,60750.0,1.11075508]
[1723312180132,1.09161821,60751.0,60750.0,1.39046277]
[1723312180339,1.09161821,60751.0,60750.0,1.20943136]
[1723312180545,1.09161821,60751.0,60750.0,1.11075508]
[1723312180902,1.09161821,60751.0,60750.0,1.3658028]
[1723312181105,1.09161821,60751.0,60750.0,1.11075508]
[1723312181312,1.09161821,60751.0,60750.0,1.18478133]
[1723312181511,1.09161821,60751.0,60750.0,1.29160392]
[1723312181711,1.09161821,60751.0,60750.0,1.20945072]
[1723312181986,1.09161821,60751.0,60750.0,1.29160882]
[1723312181987,0.00024423,60751.0,60750.0,1.29160882]
[1723312182192,0.00024423,60751.0,60750.0,1.39029935]
[1723312182389,0.00024423,60751.0,60750.0,1.20943631]
[1723312182589,0.00024423,60751.0,60750.0,1.41333245]
[1723312182842,0.00024423,60751.0,60750.0,1.2324355]
[1723312183042,0.00024423,60751.0,60750.0,1.41333245]
[1723312183202,0.00024423,60751.0,60750.0,1.2324355]
[1723312183425,0.00024423,60751.0,60750.0,1.41333245]
[1723312183651,0.00024423,60751.0,60750.0,1.2324355]
[1723312183845,0.00024423,60751.0,60750.0,1.41333245]
[1723312184046,0.00024423,60751.0,60750.0,1.2324355]
[1723312184226,0.00024423,60751.0,60750.0,1.41333245]
[1723312184446,0.00024423,60751.0,60750.0,1.2324355]
[1723312184647,0.00024423,60751.0,60750.0,1.41333245]
[1723312184897,0.00024423,60751.0,60750.0,1.23243549]
[1723312185089,0.00024423,60751.0,60750.0,1.41335416]
[1723312185310,0.00024423,60751.0,60750.0,1.3830125]
[1723312185486,0.00024423,60751.0,60750.0,1.50639367]
[1723312186093,0.00024423,60751.0,60750.0,1.3830125]
[1723312186308,0.00024423,60751.0,60750.0,1.50139169]
[1723312186534,0.00024423,60751.0,60750.0,1.50539169]
[1723312186749,0.00024423,60751.0,60750.0,1.51939169]
[1723312187107,0.00024423,60751.0,60750.0,1.32766363]
[1723312187776,0.00024423,60751.0,60750.0,1.31666363]
[1723312187982,0.00024423,60751.0,60750.0,1.50839202]
[1723312188185,0.00024423,60751.0,60750.0,1.52034982]
[1723312188573,0.00024423,60751.0,60750.0,1.13438489]
[1723312188777,0.00024423,60751.0,60750.0,1.50859321]
[1723312188925,0.00024423,60751.0,60750.0,1.49459321]
[1723312189131,0.00024423,60751.0,60750.0,1.50859321]
[1723312189709,0.00024423,60751.0,60750.0,1.52259321]
[1723312190134,0.00024423,60751.0,60750.0,1.39925424]
[1723312192500,0.00024423,60751.0,60750.0,1.2625631]
[1723312192665,0.00024423,60751.0,60750.0,1.84044459]
[1723312193081,0.00024423,60751.0,60750.0,1.84044051]
[1723312193280,0.00024423,60751.0,60750.0,1.53595148]
[1723312193496,0.00024423,60751.0,60750.0,1.84044051]
[1723312193675,0.00024423,60751.0,60750.0,1.52257958]
[1723312194562,0.00024423,60751.0,60750.0,1.33091092]
[1723312194763,0.00024423,60751.0,60750.0,1.53595246]
[1723312195377,0.00024423,60751.0,60750.0,1.56625829]
[1723312196163,0.00024423,60751.0,60750.0,1.74734779]
[1723312196771,0.00024423,60751.0,60750.0,1.61065343]
[1723312197162,0.00024423,60751.0,60750.0,1.42956393]
[1723312197728,0.00024423,60751.0,60750.0,1.24839427]
[1723312198973,0.00024423,60751.0,60750.0,1.27305594]
[1723312199178,0.00024423,60751.0,60750.0,1.52232258]
[1723312199491,0.00024423,60751.0,60750.0,1.27305594]
[1723312199697,0.00024423,60751.0,60750.0,1.42924341]
[1723312199914,0.00024423,60751.0,60750.0,1.33066133]
[1723312200290,0.00024423,60751.0,60750.0,1.52223603]
[1723312201121,0.00024423,60751.0,60750.0,1.2483359]
[1723312201306,0.00024423,60751.0,60750.0,1.39900954]
[1723312201697,0.00024423,60751.0,60750.0,1.49760162]
[1723312201900,0.00024423,60751.0,60750.0,1.42925341]
[1723312202266,0.00024423,60751.0,60750.0,1.49760239]
[1723312202710,0.00024423,60751.0,60750.0,1.49764455]
[1723312202903,0.00024423,60751.0,60750.0,1.52228007]
[1723312203305,0.00024423,60751.0,60750.0,1.39905247]
[1723312203580,0.00024423,60751.0,60750.0,1.01304592]
[1723312203858,0.00024423,60751.0,60750.0,1.39903996]
[1723312204277,0.00024423,60751.0,60750.0,1.52226756]
[1723312204580,0.00024423,60751.0,60750.0,1.52228566]
[1723312205000,0.00024423,60751.0,60750.0,1.39903996]
[1723312205199,0.00024423,60751.0,60750.0,1.49763903]
[1723312205399,0.00024423,60751.0,60750.0,1.39903996]
[1723312205922,0.00024423,60751.0,60750.0,1.52228566]
[1723312206094,0.00024423,60751.0,60750.0,1.39903996]
[1723312206326,0.00024423,60751.0,60750.0,1.49763479]
[1723312206818,0.00024423,60751.0,60750.0,1.01304592]
[1723312207014,0.00024423,60751.0,60750.0,1.39905204]
[1723312207236,0.00024423,60751.0,60750.0,1.08139421]
[1723312207428,0.00024423,60751.0,60750.0,1.56989291]
[1723312210893,0.00024423,60751.0,60750.0,1.56988658]
[1723312211893,0.00024423,60751.0,60750.0,1.74449558]
[1723312212326,0.00024423,60751.0,60750.0,1.74432032]
[1723312212535,0.00024423,60751.0,60750.0,1.74590513]
[1723312212754,0.00024423,60751.0,60750.0,1.84590371]
[1723312213178,0.00024423,60751.0,60750.0,1.94889304]
[1723312213402,0.00024423,60751.0,60750.0,1.84590371]
[1723312213585,0.00024423,60751.0,60750.0,1.81790371]
[1723312213791,0.00024423,60751.0,60750.0,1.83190371]
[1723312213995,0.00024423,60751.0,60750.0,1.84590371]
[1723312214280,0.00024423,60751.0,60750.0,1.83190371]
[1723312214499,0.00024423,60751.0,60750.0,1.44608914]
[1723312214703,0.00024423,60751.0,60750.0,1.8459016]
[1723312215096,0.00024423,60751.0,60750.0,1.8319016]
[1723312215301,0.00024423,60751.0,60750.0,1.8459016]
[1723312216044,0.00024423,60751.0,60750.0,1.8319016]
[1723312216303,0.00024423,60751.0,60750.0,1.8179016]
[1723312216519,0.00024423,60751.0,60750.0,1.8459016]
[1723312217197,0.00024423,60751.0,60750.0,1.84431433]
[1723312217416,0.00024423,60751.0,60750.0,1.8459016]
[1723312218613,0.00024423,60751.0,60750.0,1.8459055]
[1723312219084,0.00024423,60751.0,60750.0,1.84577386]
[1723312220520,0.00024423,60751.0,60750.0,1.84576844]
[1723312222599,0.00024423,60751.0,60750.0,1.67475609]
[1723312222851,0.00024423,60751.0,60750.0,1.84560307]
[1723312224674,0.00024423,60751.0,60750.0,1.94858712]
[1723312225199,0.00024423,60751.0,60750.0,1.84560307]
[1723312226379,0.00024423,60751.0,60750.0,1.94858791]
[1723312226619,0.00024423,60751.0,60750.0,2.04483854]
[1723312226849,0.00024423,60751.0,60750.0,2.11317261]
[1723312228053,0.00024423,60751.0,60750.0,2.01018777]
[1723312230163,0.00024423,60751.0,60750.0,1.45385119]
[1723312230365,0.00024423,60751.0,60750.0,2.01030302]
[1723312230789,0.00024423,60751.0,60750.0,2.00864409]
[1723312231248,0.00024423,60751.0,60750.0,2.15611447]
[1723312231981,0.00024423,60751.0,60750.0,2.1560895]
[1723312232664,0.00024423,60751.0,60750.0,2.15767677]
[1723312232827,0.00024423,60751.0,60750.0,2.00861912]
[1723312234050,0.00024423,60751.0,60750.0,1.82813369]
[1723312234214,0.00024423,60751.0,60750.0,2.15778408]
[1723312234416,0.00024423,60751.0,60750.0,2.0103137]
[1723312237366,0.00024423,60751.0,60750.0,2.11329837]
[1723312237761,0.00024423,60751.0,60750.0,2.12314978]
[1723312238199,0.00024423,60751.0,60750.0,2.11329837]
[1723312240127,0.00024423,60751.0,60750.0,2.3314347]
[1723312240460,0.00024423,60751.0,60750.0,2.11329837]
[1723312240714,0.00024423,60751.0,60750.0,2.3314347]
[1723312240879,0.00019625,60751.0,60750.0,2.13329837]
[1723312241224,0.00019625,60751.0,60750.0,2.35096507]
[1723312241437,0.00019625,60751.0,60750.0,2.11329837]
[1723312241629,0.00019625,60751.0,60750.0,2.33141593]
[1723312241831,0.00019625,60751.0,60750.0,2.11374418]
[1723312242039,0.00019625,60751.0,60750.0,1.8745782]
[1723312242218,0.00019625,60751.0,60750.0,2.12201021]
[1723312242371,0.00019625,60751.0,60750.0,2.12359748]
[1723312242576,0.00019625,60751.0,60750.0,2.11374805]
[1723312244454,0.00019625,60751.0,60750.0,2.12359739]
[1723312244819,0.00019625,60751.0,60750.0,2.05214805]
[1723312245669,0.00019625,60751.0,60750.0,1.94916338]
[1723312245871,0.00019625,60751.0,60750.0,1.94917472]
[1723312246204,0.00019625,60751.0,60750.0,2.05216406]
[1723312249345,0.00019625,60751.0,60750.0,2.05216407]
[1723312249556,0.00019625,60751.0,60750.0,2.0505768]
[1723312249756,0.00019625,60751.0,60750.0,2.05216407]
[1723312252360,0.00019625,60751.0,60750.0,2.11626407]
[1723312252764,0.00019625,60751.0,60750.0,2.34393103]
[1723312252992,0.00019625,60751.0,60750.0,2.11626407]
[1723312253330,0.00019625,60751.0,60750.0,2.11592682]
[1723312253533,0.00019625,60751.0,60750.0,1.55934053]
[1723312253645,0.00019625,60751.0,60750.0,2.11596793]
[1723312253845,0.00019625,60751.0,60750.0,2.34366108]
[1723312254268,0.00019625,60751.0,60750.0,2.12581559]
[1723312254522,0.00019625,60751.0,60750.0,2.34368378]
[1723312254720,0.00019625,60751.0,60750.0,2.11596793]
[1723312255409,0.00019625,60751.0,60750.0,2.12581589]
[1723312256796,0.00019625,60751.0,60750.0,2.11596793]
[1723312257000,0.00019625,60751.0,60750.0,1.55934053]
[1723312257207,0.00019625,60751.0,60750.0,1.97941657]
[1723312257359,0.00019625,60751.0,60750.0,2.11608199]
[1723312257883,0.00019625,60751.0,60750.0,2.11624806]
[1723312260449,0.00019625,60751.0,60750.0,2.11716216]
[1723312260655,0.00019625,60751.0,60750.0,1.73109033]
[1723312260876,0.00019625,60751.0,60750.0,2.11718447]
[1723312261064,0.000831,60756.0,60750.0,2.11718447]
[1723312261065,0.000831,60756.0,60755.0,0.99555927]
[1723312261354,0.000831,60756.0,60755.0,1.99854046]
[1723312261591,0.000831,60756.0,60755.0,2.09854058]
[1723312261795,0.000831,60756.0,60755.0,2.10869337]
[1723312262025,0.000831,60756.0,60755.0,2.08869337]
[1723312262238,0.000831,60756.0,60755.0,2.10869337]
[1723312262589,0.000832,60758.0,60757.0,1.08323227]
[1723312262797,0.000832,60758.0,60757.0,2.24783471]
[1723312263664,0.000832,60758.0,60757.0,2.02996637]
[1723312264028,0.000832,60758.0,60757.0,2.04064426]
[1723312264139,0.000832,60758.0,60757.0,2.03079361]
[1723312264347,0.000832,60758.0,60757.0,2.04883572]
[1723312264927,1.15777398,60771.0,60762.0,1.06315527]
[1723312265061,1.15777398,60771.0,60762.0,1.98642727]
[1723312265263,0.000832,60775.0,60762.0,1.98642727]
[1723312265264,0.000831,60772.0,60771.0,1.061436]
[1723312265488,0.000831,60772.0,60771.0,1.906008]
[1723312265689,0.000831,60772.0,60771.0,1.926008]
[1723312265892,0.000831,60772.0,60771.0,2.02895472]
[1723312266101,0.000831,60772.0,60771.0,2.03054199]
[1723312266420,0.000831,60772.0,60771.0,2.24822893]
[1723312266626,0.000831,60772.0,60771.0,2.02454199]
[1723312266822,0.000831,60772.0,60771.0,2.04454199]
[1723312267001,0.000831,60772.0,60771.0,1.73953725]
[1723312267207,0.000831,60772.0,60771.0,1.92141265]
[1723312268049,0.000831,60772.0,60771.0,1.93945429]
[1723312268643,0.000831,60772.0,60771.0,2.09664348]
[1723312268851,0.000831,60772.0,60771.0,1.68169806]
[1723312269048,0.000831,60772.0,60771.0,1.67765642]
[1723312270296,0.000831,60772.0,60771.0,1.67606915]
[1723312270532,0.000831,60772.0,60771.0,1.44119685]
[1723312270869,0.000831,60772.0,60771.0,1.4427949]
[1723312271118,0.08184646,60779.0,60778.0,0.082266]
[1723312271248,0.08184646,60779.0,60778.0,0.64894254]
[1723312271451,0.08657242,60779.0,60778.0,0.64894254]
[1723312271652,0.08657242,60779.0,60778.0,0.74894254]
[1723312272268,0.08657242,60779.0,60778.0,0.76294254]
[1723312272470,0.00472596,60779.0,60778.0,1.26654154]
[1723312272896,0.067231,60781.0,60780.0,0.421317]
[1723312273097,0.067231,60781.0,60780.0,0.74476054]
[1723312273296,0.067231,60781.0,60780.0,1.07381454]
[1723312274169,0.000831,60781.0,60780.0,1.08781454]
[1723312274430,0.00495163,60781.0,60780.0,1.09185525]
[1723312274901,0.00495163,60781.0,60780.0,1.09184717]
[1723312275094,0.00495163,60781.0,60780.0,1.10484717]
[1723312275293,0.00495163,60781.0,60780.0,0.96822663]
[1723312275447,0.00495163,60781.0,60780.0,1.10484785]
[1723312275652,0.00495163,60781.0,60780.0,1.10080714]
[1723312277667,0.000831,60781.0,60780.0,1.10080714]
[1723312278518,0.000831,60781.0,60780.0,1.10239441]
[1723312278888,0.000831,60781.0,60780.0,1.10080659]
[1723312279123,0.000831,60781.0,60780.0,1.10239386]
[1723312279675,0.000831,60781.0,60780.0,1.18049386]
[1723312280517,0.000831,60781.0,60780.0,1.17890659]
[1723312280730,0.000831,60781.0,60780.0,1.18049386]
[1723312280991,0.000831,60781.0,60780.0,1.29782026]
[1723312281362,0.000831,60781.0,60780.0,1.24880342]
[1723312281516,0.000831,60781.0,60780.0,1.29776049]
[1723312281737,0.000831,60781.0,60780.0,1.29776039]
[1723312282340,0.000831,60781.0,60780.0,1.29617312]
[1723312282567,0.000831,60781.0,60780.0,1.24720051]
[1723312283009,0.000831,60781.0,60780.0,1.17889565]
[1723312285562,0.061631,60781.0,60780.0,1.10079565]
[1723312286785,0.061631,60781.0,60780.0,0.96418592]
[1723312287003,0.061631,60781.0,60780.0,1.10080629]
[1723312291576,0.061631,60781.0,60780.0,1.16911684]
[1723312291827,0.061631,60781.0,60780.0,1.10080629]
[1723312292229,0.061631,60781.0,60780.0,1.16911701]
[1723312292470,0.061631,60781.0,60780.0,1.3514473]
[1723312292723,0.061631,60781.0,60780.0,1.16911701]
[1723312292973,0.061631,60781.0,60780.0,1.3514473]
[1723312293226,0.061631,60781.0,60780.0,1.16911701]
[1723312293489,0.061631,60781.0,60780.0,1.3514473]
[1723312293800,0.061631,60781.0,60780.0,1.35225673]
[1723312294489,0.061631,60781.0,60780.0,1.52303309]
[1723312295402,0.000831,60781.0,60780.0,1.52303309]
[1723312296111,0.000831,60781.0,60780.0,1.52329316]
[1723312296802,0.000831,60781.0,60780.0,1.60219316]
[1723312297446,0.000831,60781.0,60780.0,1.92198228]
[1723312297673,0.000831,60781.0,60780.0,1.98328228]
[1723312297932,0.000831,60781.0,60780.0,1.79953556]
[1723312298162,0.000831,60781.0,60780.0,2.07031167]
[1723312298380,0.000831,60781.0,60780.0,2.08431167]
[1723312298604,0.000831,60781.0,60780.0,2.13333074]
[1723312299013,0.000831,60781.0,60780.0,1.79942587]
[1723312299240,0.000831,60781.0,60780.0,1.79949879]
[1723312299481,0.000831,60781.0,60780.0,1.81349879]
[1723312299712,0.000831,60781.0,60780.0,1.82400833]
[1723312299954,0.000831,60781.0,60780.0,1.83800833]
[1723312300446,0.000831,60781.0,60780.0,1.82400833]
[1723312300671,0.000831,60781.0,60780.0,1.8395956]
[1723312300933,0.000831,60781.0,60780.0,1.2805018]
[1723312301140,0.000831,60781.0,60780.0,1.86882881]
[1723312301927,0.000831,60781.0,60780.0,1.85482881]
[1723312302130,0.000831,60781.0,60780.0,1.84082881]
[1723312302534,0.000831,60781.0,60780.0,1.85324154]
[1723312302733,0.000831,60781.0,60780.0,1.86724154]
[1723312303102,0.000831,60781.0,60780.0,1.76429728]
[1723312303299,0.000831,60781.0,60780.0,1.86723177]
[1723312303725,0.000831,60781.0,60780.0,1.86881904]
[1723312304569,0.000831,60781.0,60780.0,1.86838968]
[1723312304794,0.000831,60781.0,60780.0,1.76545519]
[1723312305148,0.000831,60781.0,60780.0,1.91251242]
[1723312305998,0.000831,60781.0,60780.0,1.87825042]
[1723312306179,0.000831,60781.0,60780.0,2.01585588]
[1723312306376,0.000831,60781.0,60780.0,2.01585765]
[1723312306582,0.000831,60781.0,60780.0,1.91292118]
[1723312306993,0.000831,60781.0,60780.0,1.76545519]
[1723312307194,0.000831,60781.0,60780.0,1.91292118]
[1723312307469,0.000831,60781.0,60780.0,1.76545519]
[1723312307697,0.000831,60781.0,60780.0,1.91297209]
[1723312308709,0.000831,60781.0,60780.0,1.53752797]
[1723312308920,0.000831,60781.0,60780.0,1.91319821]
[1723312309130,0.000831,60781.0,60780.0,2.04299743]
[1723312309539,0.000831,60781.0,60780.0,2.03314108]
[1723312309984,0.000831,60781.0,60780.0,1.47443296]
[1723312310295,0.000831,60781.0,60780.0,2.04300154]
[1723312310504,0.000831,60781.0,60780.0,1.86703273]
[1723312310703,0.000831,60781.0,60780.0,1.70259996]
[1723312311107,0.000831,60781.0,60780.0,1.78249996]
[1723312311727,0.000831,60781.0,60780.0,1.84481569]
[1723312312144,0.000831,60781.0,60780.0,1.94616327]
[1723312312351,0.000831,60781.0,60780.0,1.88546202]
[1723312312559,0.000831,60781.0,60780.0,1.78252717]
[1723312313591,0.000831,60781.0,60780.0,1.62392717]
[1723312313792,0.000831,60781.0,60780.0,1.69262717]
[1723312315031,0.000831,60781.0,60780.0,1.84025165]
[1723312315477,0.000831,60781.0,60780.0,1.65719553]